bitfinex/quotes_SOLUSD_20240716
["timestamp","ask_amount","ask_price","bid_price","bid_amount"]
[1721097835258,15.53,157.22,157.18,45.0]
[1721097835670,15.53,157.23,157.18,45.0]
[1721097836384,15.53,157.23,157.19,6.3614]
[1721097836686,15.53,157.22,157.19,6.3614]
[1721097837771,15.53,157.22,157.2,6.3612]
[1721097837993,15.53,157.22,157.19,6.3617]
[1721097838673,15.53,157.22,157.17,37.7975]
[1721097838873,15.53,157.22,157.18,6.3621]
[1721097839982,15.53,157.23,157.18,6.3621]
[1721097840371,15.53,157.23,157.19,6.3617]
[1721097840581,6.6509066,157.25,157.17,15.9054]
[1721097840770,15.53,157.23,157.17,31.4354]
[1721097840959,15.53,157.23,157.18,6.3618]
[1721097841867,15.53,157.25,157.2,15.53]
[1721097842079,15.53,157.25,157.21,1.27196904]
[1721097842585,15.53,157.25,157.2,15.53]
[1721097842787,6.359,157.26,157.2,15.53]
[1721097842978,6.64858376,157.29,157.21,17.17328478]
[1721097843187,15.53,157.27,157.24,6.3596]
[1721097843386,6.3573,157.3,157.24,6.3596]
[1721097843387,15.53,157.28,157.24,6.3596]
[1721097844367,15.53,157.28,157.23,21.89]
[1721097845008,15.53,157.28,157.24,6.3596]
[1721097845869,15.53,157.28,157.23,21.89]
[1721097846397,15.53,157.28,157.24,6.3596]
[1721097846897,15.53,157.28,157.23,21.89]
[1721097847069,6.3576,157.29,157.23,21.89]
[1721097847398,6.3576,157.29,157.25,6.3591]
[1721097847399,15.53,157.29,157.25,6.3591]
[1721097847601,12.95969135,157.31,157.25,47.322]
[1721097847797,15.53,157.31,157.26,7.63034141]
[1721097848283,6.3568,157.31,157.26,1.27154141]
[1721097848472,15.53,157.31,157.26,6.3588]
[1721097848674,15.53,157.31,157.26,66.8888]
[1721097849074,15.53,157.31,157.26,68.16030075]
[1721097849274,21.8868,157.31,157.26,60.53]
[1721097849501,15.53,157.3,157.26,45.0]
[1721097850486,6.3565,157.32,157.26,51.3588]
[1721097850812,15.53,157.32,157.27,21.8884]
[1721097850983,15.53,157.32,157.26,66.8888]
[1721097850984,15.53,157.31,157.26,66.8888]
[1721097851316,6.356,157.33,157.27,6.3583]
[1721097851603,15.53,157.32,157.27,21.8883]
[1721097853420,21.8864,157.32,157.27,15.53]
[1721097853715,15.53,157.31,157.26,21.8887]
[1721097854002,21.8864,157.32,157.27,15.53]
[1721097854204,10.0,157.34,157.25,15.8946]
[1721097854387,10.0,157.34,157.26,45.0]
[1721097854585,6.3568,157.31,157.26,60.53]
[1721097854806,21.8865,157.32,157.26,66.8888]
[1721097855603,15.53,157.31,157.26,66.8888]
[1721097856708,21.8865,157.32,157.26,66.8888]
[1721097857187,6.75430283,157.35,157.28,15.53]
[1721097857391,17.46152713,157.38,157.29,15.53]
[1721097857597,15.53,157.34,157.29,21.8873]
[1721097858082,6.3552,157.35,157.29,21.8873]
[1721097858281,15.53,157.34,157.29,21.8873]
[1721097859712,15.53,157.34,157.28,15.53]
[1721097860023,6.3563,157.33,157.29,45.0]
[1721097860315,21.8857,157.34,157.29,60.53]
[1721097860525,15.53,157.34,157.29,66.8876]
[1721097861318,21.8856,157.34,157.29,60.53]
[1721097861825,15.53,157.33,157.29,45.0]
[1721097862801,15.53,157.33,157.29,51.3576]
[1721097863922,6.3549,157.36,157.31,30.8925]
[1721097864104,24.10734429,157.38,157.31,37.2493]
[1721097864416,15.53,157.36,157.31,37.2493]
[1721097865831,21.8845,157.37,157.31,37.2493]
[1721097867113,15.53,157.35,157.31,21.7193]
[1721097867427,6.3553,157.35,157.31,15.3625]
[1721097867598,6.3553,157.35,157.31,30.8925]
[1721097867799,21.8849,157.36,157.31,30.8925]
[1721097868223,21.8849,157.36,157.31,37.2493]
[1721097868419,6.3545,157.37,157.31,37.2493]
[1721097868717,15.53,157.36,157.31,37.2493]
[1721097869519,21.885,157.36,157.31,15.3625]
[1721097869726,15.53,157.34,157.31,15.3625]
[1721097870315,10.0,157.38,157.31,15.3625]
[1721097870619,15.53,157.36,157.31,30.8925]
[1721097870827,15.53,157.36,157.31,21.7193]
[1721097870828,21.8848,157.36,157.31,21.7193]
[1721097871014,15.53,157.36,157.31,21.7193]
[1721097871212,16.3541,157.38,157.32,6.356]
[1721097871406,15.53,157.36,157.32,6.356]
[1721097872320,6.3541,157.38,157.32,6.356]
[1721097872502,15.53,157.39,157.36,6.3546]
[1721097872697,15.53,157.39,157.34,15.53]
[1721097873219,20.30587971,157.4,157.37,6.3544]
[1721097873519,20.30587971,157.4,157.35,23.51325846]
[1721097873520,15.53,157.4,157.35,23.51325846]
[1721097874424,15.53,157.42,157.38,15.8847]
[1721097874829,6.3516,157.44,157.38,22.2387]
[1721097875129,15.53,157.42,157.38,22.2387]
[1721097875312,15.53,157.42,157.37,30.858]
[1721097875627,15.53,157.43,157.38,61.80054789]
[1721097875827,15.53,157.43,157.38,66.884]
[1721097876221,15.53,157.42,157.38,51.354]
[1721097876812,15.53,157.42,157.38,52.62454883]
[1721097877010,15.53,157.43,157.38,68.15454883]
[1721097877719,15.53,157.43,157.38,52.62454883]
[1721097877923,15.53,157.43,157.38,68.15454883]
[1721097878728,6.64465259,157.46,157.4,6.3531]
[1721097878932,15.53,157.44,157.39,21.8836]
[1721097879226,15.53,157.43,157.4,1.27041405]
[1721097879631,15.53,157.44,157.4,1.27041405]
[1721097880032,12.99565259,157.46,157.37,31.214]
[1721097880033,15.53,157.43,157.37,15.328]
[1721097880216,16.64465259,157.46,157.37,15.328]
[1721097880217,15.53,157.42,157.37,15.328]
[1721097880414,21.8827,157.42,157.37,15.328]
[1721097881030,10.0,157.44,157.37,15.328]
[1721097881031,21.8835,157.4,157.37,15.328]
[1721097881236,15.53,157.39,157.37,15.328]
[1721097882413,15.53,157.38,157.33,30.9379]
[1721097882739,15.53,157.37,157.33,37.2938]
[1721097884249,15.53,157.37,157.33,30.9379]
[1721097884414,15.53,157.36,157.33,15.0486]
[1721097884723,15.53,157.35,157.33,15.0486]
[1721097885638,15.53,157.36,157.31,15.53]
[1721097885830,15.53,157.33,157.3,22.2499]
[1721097886539,15.53,157.33,157.31,6.3568]
[1721097886733,15.53,157.34,157.31,6.3568]
[1721097886933,16.3544,157.37,157.3,15.893]
[1721097887124,15.53,157.35,157.32,6.3564]
[1721097887832,6.354,157.38,157.32,6.3564]
[1721097888134,15.53,157.35,157.32,6.3564]
[1721097888746,6.354,157.38,157.32,6.3564]
[1721097888921,15.53,157.35,157.32,6.3564]
[1721097889425,15.53,157.35,157.33,6.356]
[1721097889623,15.53,157.35,157.31,6.3564]
[1721097890024,15.53,157.34,157.3,15.893]
[1721097890334,15.53,157.34,157.31,6.3568]
[1721097890539,15.53,157.35,157.31,6.3568]
[1721097891619,15.53,157.34,157.31,6.3568]
[1721097892123,15.53,157.35,157.31,6.3568]
[1721097892442,15.53,157.35,157.33,6.3559]
[1721097892642,15.53,157.36,157.33,6.3559]
[1721097892828,15.53,157.36,157.33,15.8901]
[1721097894247,16.64652426,157.39,157.33,22.2459]
[1721097894449,15.53,157.36,157.33,22.2459]
[1721097895152,15.53,157.37,157.33,22.2459]
[1721097895819,15.53,157.37,157.33,15.8901]
[1721097896044,6.354,157.38,157.33,15.8901]
[1721097896045,15.53,157.36,157.33,15.8901]
[1721097897130,15.53,157.36,157.33,22.2461]
[1721097897339,6.354,157.38,157.33,22.2461]
[1721097897340,15.53,157.37,157.33,22.2461]
[1721097897736,23.00022426,157.39,157.33,22.2461]
[1721097897934,15.53,157.37,157.33,22.2461]
[1721097898138,15.53,157.38,157.33,15.8901]
[1721097898640,15.53,157.37,157.33,15.8901]
[1721097900226,15.53,157.36,157.33,15.8901]
[1721097900437,15.53,157.36,157.32,6.3564]
[1721097901146,15.53,157.36,157.33,6.356]
[1721097901625,15.53,157.37,157.33,6.356]
[1721097902144,15.53,157.37,157.32,21.8864]
[1721097902347,6.354,157.38,157.32,6.3564]
[1721097902348,15.53,157.36,157.32,6.3564]
[1721097903054,15.53,157.33,157.29,15.881]
[1721097903343,6.3557,157.34,157.29,15.881]
[1721097903545,15.53,157.31,157.29,15.881]
[1721097903845,25.53,157.36,157.29,15.881]
[1721097903846,6.3562,157.33,157.29,15.881]
[1721097904026,15.53,157.31,157.29,15.881]
[1721097904446,15.53,157.31,157.12,386.0]
[1721097904447,15.53,157.3,157.25,6.3592]
[1721097904746,15.53,157.29,157.24,37.7402]
[1721097905054,15.53,157.28,157.25,6.3592]
[1721097905342,15.53,157.29,157.25,6.3592]
[1721097905553,10.0,157.32,157.27,6.3583]
[1721097905722,15.53,157.3,157.26,15.8971]
[1721097906134,15.53,157.3,157.26,22.2558]
[1721097907753,15.53,157.31,157.27,6.3584]
[1721097908474,15.53,157.31,157.26,37.7859]
[1721097908639,15.53,157.3,157.26,22.2559]
[1721097909136,15.53,157.3,157.27,6.3583]
[1721097910141,15.53,157.3,157.26,22.2558]
[1721097910343,21.8878,157.29,157.24,15.8506]
[1721097910651,21.8878,157.29,157.25,51.3592]
[1721097910652,15.53,157.29,157.25,51.3592]
[1721097910854,15.53,157.3,157.25,51.3592]
[1721097911538,15.53,157.3,157.26,6.3587]
[1721097911951,15.53,157.3,157.27,6.3584]
[1721097912532,15.53,157.31,157.27,6.3584]
[1721097913351,15.53,157.31,157.26,6.3588]
[1721097913555,15.53,157.3,157.26,6.3588]
[1721097913752,15.53,157.29,157.26,6.3588]
[1721097914659,6.3561,157.33,157.27,6.3584]
[1721097914950,15.53,157.31,157.28,6.3577]
[1721097915339,10.0,157.34,157.29,6.3575]
[1721097915654,10.0,157.34,157.28,15.53]
[1721097915972,15.53,157.33,157.29,6.3573]
[1721097916336,15.53,157.32,157.28,6.358]
[1721097916840,15.53,157.32,157.29,6.3575]
[1721097917237,15.53,157.33,157.3,6.3572]
[1721097917754,15.53,157.33,157.28,15.53]
[1721097917755,15.53,157.33,157.29,6.3576]
[1721097918369,6.3552,157.35,157.29,6.3576]
[1721097918536,15.53,157.33,157.29,6.3576]
[1721097918731,15.53,157.32,157.28,6.358]
[1721097918935,15.53,157.32,157.27,37.7838]
[1721097919234,15.53,157.32,157.28,45.0]
[1721097919434,15.53,157.32,157.28,51.358]
[1721097919655,6.3556,157.35,157.29,6.3576]
[1721097919859,15.53,157.32,157.29,6.3576]
[1721097920038,6.3556,157.35,157.29,6.3576]
[1721097920361,15.53,157.33,157.29,6.3576]
[1721097920656,15.53,157.33,157.27,15.8954]
[1721097920858,15.53,157.32,157.27,31.4254]
[1721097922358,15.53,157.32,157.28,6.358]
[1721097923549,6.3553,157.35,157.29,6.3575]
[1721097923748,15.53,157.33,157.29,6.3575]
[1721097924460,6.3553,157.35,157.29,6.3575]
[1721097924665,15.53,157.33,157.29,6.3575]
[1721097925652,15.53,157.32,157.28,6.358]
[1721097926347,6.3556,157.34,157.28,6.358]
[1721097926555,15.53,157.32,157.28,6.358]
[1721097928163,15.53,157.31,157.28,6.358]
[1721097928854,15.53,157.32,157.29,6.3576]
[1721097929369,15.53,157.33,157.3,21.9969]
[1721097929666,15.53,157.32,157.3,15.6397]
[1721097930061,6.3553,157.35,157.3,15.6397]
[1721097930255,15.53,157.32,157.3,15.6397]
[1721097930762,6.3553,157.35,157.3,21.9969]
[1721097931067,15.53,157.33,157.3,21.9969]
[1721097931566,15.53,157.33,157.3,15.6397]
[1721097932048,15.53,157.32,157.3,15.6397]
[1721097932667,15.53,157.33,157.3,15.6397]
[1721097933169,23.00140586,157.36,157.3,21.9968]
[1721097933344,13.00140586,157.36,157.3,21.9968]
[1721097933554,15.53,157.33,157.3,21.9968]
[1721097933766,15.53,157.34,157.31,6.3567]
[1721097934068,15.53,157.35,157.32,6.3564]
[1721097934650,15.53,157.35,157.3,31.1697]
[1721097935049,15.53,157.35,157.32,6.3562]
[1721097935254,15.53,157.36,157.32,6.3562]
[1721097935654,16.3543,157.38,157.32,6.3562]
[1721097935868,15.53,157.35,157.32,6.3562]
[1721097936069,15.53,157.35,157.31,6.3568]
[1721097937871,6.3545,157.37,157.31,6.3568]
[1721097938071,15.53,157.36,157.31,6.3568]
[1721097940884,15.53,157.35,157.3,37.5269]
[1721097941590,6.3549,157.36,157.3,37.5269]
[1721097941591,15.53,157.34,157.3,21.9969]
[1721097942469,15.53,157.35,157.31,6.3568]
[1721097943275,6.3544,157.38,157.32,6.3564]
[1721097943467,15.53,157.36,157.32,6.3564]
[1721097943776,15.53,157.37,157.32,6.3564]
[1721097944380,21.8844,157.37,157.31,21.8867]
[1721097944674,15.53,157.36,157.31,6.3567]
[1721097945481,15.53,157.35,157.31,6.3567]
[1721097949981,15.53,157.35,157.32,6.3564]
[1721097951273,12.9996386,157.39,157.33,6.356]
[1721097951462,15.53,157.36,157.33,6.356]
[1721097953511,6.6459386,157.39,157.33,6.356]
[1721097953681,15.53,157.37,157.34,6.3554]
[1721097953892,15.53,157.37,157.33,22.2453]
[1721097955288,15.53,157.36,157.33,22.2453]
[1721097955793,15.53,157.36,157.33,15.8893]
[1721097956498,15.53,157.36,157.3,31.5326]
[1721097956499,15.53,157.35,157.3,31.5326]
[1721097956675,21.8863,157.33,157.3,15.6397]
[1721097956988,35.74898805,157.4,157.3,15.6397]
[1721097956989,10.0,157.34,157.3,15.6397]
[1721097957295,15.53,157.32,157.3,15.6397]
[1721097957675,15.53,157.31,157.3,15.6397]
[1721097958667,15.53,157.32,157.3,15.6397]
[1721097959781,15.53,157.32,157.3,21.9969]
[1721097962291,10.0,157.34,157.3,21.9969]
[1721097962594,15.53,157.32,157.31,6.3568]
[1721097965491,15.53,157.33,157.31,6.3568]
[1721097965689,10.0,157.32,157.29,22.2509]
[1721097965992,15.53,157.31,157.29,22.2509]
[1721097966588,10.0,157.32,157.29,22.2509]
[1721097966589,10.0,157.34,157.3,6.3572]
[1721097966767,25.53,157.32,157.29,15.8934]
[1721097968396,25.53,157.32,157.29,22.2508]
[1721097968786,16.3565,157.32,157.26,22.9977]
[1721097968976,15.53,157.3,157.26,16.6392]
[1721097969395,15.53,157.29,157.26,16.6392]
[1721097969893,25.53,157.29,157.26,6.3588]
[1721097970075,15.53,157.27,157.22,16.5764]
[1721097970277,15.53,157.27,157.24,6.3597]
[1721097970586,15.53,157.27,157.25,6.3592]
[1721097971397,10.0,157.29,157.25,6.3592]
[1721097971697,15.53,157.27,157.25,6.3592]
[1721097972672,10.0,157.29,157.25,6.3592]
[1721097972895,15.53,157.27,157.25,6.3592]
[1721097974778,15.53,157.26,157.23,15.8994]
[1721097975802,15.53,157.25,157.22,16.5764]
[1721097976178,6.65151769,157.3,157.2,15.9031]
[1721097976179,15.53,157.23,157.2,15.9031]
[1721097976391,15.53,157.21,157.18,21.4807]
[1721097976600,15.53,157.21,157.18,21.4804]
[1721097976789,15.53,157.22,157.18,21.4804]
[1721097977877,10.0,157.24,157.2,15.903]
[1721097978082,15.53,157.23,157.2,15.903]
[1721097978298,15.53,157.22,157.2,15.903]
[1721097978477,15.53,157.21,157.18,15.1187]
[1721097978794,15.53,157.19,157.18,15.1187]
[1721097979198,15.53,157.19,157.16,15.9066]
[1721097979406,28.5417,157.17,157.13,6.3638]
[1721097979589,15.53,157.14,157.12,15.9107]
[1721097979807,15.53,157.14,157.12,22.2752]
[1721097980017,10.0,157.17,157.12,22.2752]
[1721097980311,15.53,157.14,157.12,22.2752]
[1721097980515,10.0,157.17,157.12,22.2752]
[1721097980687,15.53,157.14,157.12,22.2752]
[1721097981117,15.53,157.13,157.12,22.2752]
[1721097981289,15.53,157.13,157.08,15.9146]
[1721097981491,15.53,157.12,157.08,15.9146]
[1721097982392,15.53,157.12,157.09,6.3655]
[1721097983315,15.53,157.12,157.07,15.53]
[1721097983536,89.6609836,178.55,157.1,15.53]
[1721097983537,10.0,157.18,157.1,15.53]
[1721097983727,23.0117,157.21,157.08,46.27296185]
[1721097983728,15.53,157.14,157.11,22.2768]
[1721097984089,15.53,157.13,157.09,6.3654]
[1721097984289,10.0,157.14,157.09,6.3654]
[1721097984501,15.53,157.13,157.09,6.3654]
[1721097985812,15.53,157.12,157.08,6.3661]
[1721097986018,15.53,157.11,157.08,6.3661]
[1721097986438,15.53,157.11,157.09,6.3656]
[1721097987132,10.0,157.14,157.09,6.3656]
[1721097987304,15.53,157.12,157.09,6.3656]
[1721097988322,15.53,157.1,157.09,6.3657]
[1721097988632,15.53,157.1,157.05,30.6487]
[1721097989032,15.53,157.11,157.06,15.53]
[1721097989206,10.0,157.15,157.05,15.1187]
[1721097989410,10.0,157.13,157.07,6.3665]
[1721097989715,15.53,157.11,157.07,6.3665]
[1721097990329,15.53,157.11,157.08,6.3661]
[1721097992910,15.53,157.11,157.09,6.3657]
[1721097993124,15.53,157.11,157.07,15.9155]
[1721097993434,10.0,157.13,157.07,22.2817]
[1721097993610,15.53,157.12,157.07,15.9155]
[1721097994212,15.53,157.11,157.08,6.3661]
[1721097994721,15.53,157.12,157.07,15.9155]
[1721097996337,15.53,157.12,157.08,6.3659]
[1721097996743,15.53,157.11,157.08,6.3659]
[1721097997108,15.53,157.11,157.07,15.9155]
[1721097997313,15.53,157.1,157.07,15.9155]
[1721097999642,15.53,157.09,157.07,15.9155]
[1721098000945,15.53,157.09,157.07,22.282]
[1721098001827,10.0,157.12,157.07,22.282]
[1721098002136,15.53,157.1,157.07,22.282]
[1721098003133,15.53,157.09,157.07,22.282]
[1721098003515,10.0,157.14,157.07,15.9155]
[1721098003814,15.53,157.12,157.09,6.3654]
[1721098004021,15.53,157.12,157.08,6.3661]
[1721098005538,15.53,157.11,157.08,6.3661]
[1721098006444,15.53,157.1,157.07,22.282]
[1721098006643,10.0,157.12,157.08,6.3661]
[1721098007015,15.53,157.1,157.08,6.3661]
[1721098007932,15.53,157.11,157.09,6.3657]
[1721098008342,10.0,157.14,157.09,6.3657]
[1721098008541,15.53,157.12,157.09,6.3657]
[1721098008732,15.53,157.11,157.09,6.3657]
[1721098008929,15.53,157.11,157.07,22.2816]
[1721098009132,16.3637,157.14,157.08,6.366]
[1721098009344,15.53,157.11,157.08,6.366]
[1721098010474,15.53,157.11,157.09,6.3657]
[1721098011470,10.0,157.14,157.1,6.3653]
[1721098011648,15.53,157.12,157.1,6.3653]
[1721098012553,16.363,157.16,157.1,6.3653]
[1721098012754,15.53,157.12,157.1,6.3653]
[1721098013073,15.53,157.12,157.07,15.9155]
[1721098013268,15.53,157.12,157.09,6.3656]
[1721098013965,10.0,157.14,157.05,15.1187]
[1721098013966,15.53,157.1,157.05,15.1187]
[1721098014169,15.53,157.11,157.06,45.0]
[1721098014374,15.53,157.11,157.08,6.3661]
[1721098014667,15.53,157.11,157.09,6.3657]
[1721098015386,16.3641,157.14,157.09,6.3657]
[1721098015680,15.53,157.12,157.08,15.9146]
[1721098016051,15.53,157.11,157.08,15.9146]
[1721098016780,10.0,157.15,157.08,15.9146]
[1721098017073,15.53,157.11,157.08,15.9146]
[1721098017275,15.53,157.11,157.09,6.3656]
[1721098017876,15.53,157.11,157.08,15.9146]
[1721098018082,15.53,157.11,157.08,22.2807]
[1721098020386,15.53,157.11,157.09,6.3657]
[1721098020549,10.0,157.15,157.1,6.3653]
[1721098020750,15.53,157.12,157.1,6.3653]
[1721098021455,15.53,157.12,157.09,6.3656]
[1721098021851,10.0,157.15,157.08,15.9146]
[1721098022052,15.53,157.13,157.08,15.9146]
[1721098022481,6.363,157.16,157.08,15.9146]
[1721098022664,15.53,157.13,157.1,6.3653]
[1721098024565,16.64871886,157.17,157.09,6.3657]
[1721098024566,15.53,157.12,157.09,6.3657]
[1721098024755,16.3634,157.15,157.09,6.3657]
[1721098024975,15.53,157.12,157.11,6.3649]
[1721098025181,6.363,157.16,157.1,6.3653]
[1721098025424,6.64871886,157.17,157.11,15.8682]
[1721098025727,15.92314325,157.19,157.13,6.364]
[1721098025872,15.53,157.17,157.13,7.63669463]
[1721098026776,10.0,157.21,157.13,1.27269463]
[1721098027006,10.0,157.21,157.15,15.53]
[1721098027207,15.53,157.2,157.15,21.8931]
[1721098027372,15.53,157.19,157.14,21.8937]
[1721098027569,15.53,157.17,157.13,6.3641]
[1721098027797,15.53,157.18,157.12,61.80256717]
[1721098027987,15.53,157.18,157.15,6.3633]
[1721098028206,15.53,157.18,157.14,6.3637]
[1721098028606,16.3611,157.21,157.14,6.3637]
[1721098028897,15.53,157.18,157.15,6.3632]
[1721098029104,15.53,157.19,157.16,6.3628]
[1721098029782,15.53,157.19,157.15,1.27247298]
[1721098029783,15.53,157.19,157.15,6.3633]
[1721098030704,15.53,157.18,157.12,6.3641]
[1721098030872,15.53,157.17,157.13,6.3639]
[1721098031074,10.0,157.21,157.14,6.3636]
[1721098031275,15.53,157.18,157.14,6.3636]
[1721098032106,15.53,157.18,157.15,6.3633]
[1721098032281,15.53,157.18,157.16,6.3628]
[1721098032671,6.64775615,157.22,157.17,6.3623]
[1721098032872,89.16867751,157.28,157.17,6.3623]
[1721098032873,15.53,157.21,157.17,15.6722]
[1721098033096,15.53,157.22,157.17,32.47448167]
[1721098033577,15.53,157.22,157.18,1.27226083]
[1721098033788,15.53,157.23,157.18,1.27226797]
[1721098034105,15.53,157.23,157.19,6.3613]
[1721098034893,15.53,157.23,157.18,16.80220309]
[1721098034894,15.53,157.23,157.18,7.63420309]
[1721098035292,16.3593,157.25,157.19,6.3616]
[1721098035480,15.53,157.23,157.19,6.3616]
[1721098036314,15.53,157.23,157.18,1.27220309]
[1721098036315,21.8901,157.23,157.18,1.27220309]
[1721098036605,15.53,157.22,157.18,7.63430309]
[1721098036980,6.3592,157.26,157.18,1.27220309]
[1721098037184,15.53,157.25,157.21,6.3607]
[1721098037892,25.71358453,157.27,157.21,6.3607]
[1721098038211,15.53,157.25,157.21,1.27198081]
[1721098038401,16.3579,157.29,157.23,6.3597]
[1721098038589,16.3579,157.29,157.23,6.36]
[1721098039005,15.53,157.27,157.24,6.3596]
[1721098039516,15.53,157.28,157.23,6.36]
[1721098039805,15.53,157.27,157.23,6.36]
[1721098040533,15.53,157.26,157.22,15.1513]
[1721098040706,6.64721134,157.31,157.22,15.1513]
[1721098040707,10.0,157.27,157.22,15.1513]
[1721098041030,16.3596,157.25,157.19,6.3614]
[1721098041223,15.53,157.23,157.19,6.3614]
[1721098041897,15.53,157.28,157.19,15.53]
[1721098041898,16.3588,157.27,157.19,15.53]
[1721098042199,15.53,157.25,157.2,45.0]
[1721098042399,15.53,157.25,157.2,60.53]
[1721098042629,15.53,157.24,157.2,45.0]
[1721098042832,6.3589,157.26,157.2,45.0]
[1721098043142,6.3593,157.25,157.17,16.2691]
[1721098043298,6.3593,157.25,157.18,60.53]
[1721098043494,6.3593,157.25,157.19,6.3614]
[1721098043718,6.3589,157.26,157.2,6.3612]
[1721098045112,16.3594,157.25,157.19,6.3616]
[1721098045322,15.53,157.22,157.19,6.3616]
[1721098046126,16.3594,157.25,157.2,6.3613]
[1721098046325,15.53,157.22,157.2,6.3613]
[1721098046514,15.53,157.22,157.19,6.3613]
[1721098046830,15.53,157.23,157.2,6.3611]
[1721098049836,25.53,157.22,157.17,16.2691]
[1721098050033,15.53,157.2,157.17,22.6313]
[1721098052527,15.53,157.21,157.18,6.3621]
[1721098054750,15.53,157.21,157.17,22.6316]
[1721098055250,10.0,157.22,157.17,22.6316]
[1721098055251,15.53,157.2,157.17,22.6316]
[1721098055743,15.53,157.2,157.17,16.2691]
[1721098057034,15.53,157.2,157.13,16.4862]
[1721098057035,15.53,157.18,157.13,16.4862]
[1721098057246,15.53,157.17,157.14,6.3636]
[1721098057631,16.3613,157.2,157.14,6.3636]
[1721098057840,15.53,157.17,157.14,6.3636]
[1721098059045,15.53,157.17,157.15,6.3632]
[1721098059950,15.53,157.17,157.14,6.3636]
[1721098060250,15.53,157.17,157.15,6.3632]
[1721098060453,16.64789723,157.2,157.15,6.3632]
[1721098060749,15.53,157.18,157.16,6.3625]
[1721098061748,15.53,157.19,157.16,6.3625]
[1721098061947,13.00881232,157.21,157.16,6.3625]
[1721098062248,15.53,157.19,157.16,6.3625]
[1721098062620,15.53,157.18,157.13,16.4862]
[1721098062821,15.53,157.17,157.13,22.8502]
[1721098063048,15.53,157.16,157.13,22.8502]
[1721098063438,15.53,157.17,157.13,22.8502]
[1721098064031,15.53,157.18,157.13,32.0162]
[1721098065354,15.53,157.18,157.15,6.3631]
[1721098065731,15.53,157.17,157.13,16.4862]
[1721098066622,15.53,157.16,157.13,16.4862]
[1721098066827,15.53,157.15,157.08,16.1211]
[1721098067051,16.3626,157.17,157.11,6.3649]
[1721098067239,15.53,157.15,157.11,6.3649]
[1721098067442,6.3629,157.16,157.11,6.3649]
[1721098067752,15.53,157.15,157.11,6.3649]
[1721098068755,15.53,157.15,157.1,6.3653]
[1721098068933,25.53,157.15,157.1,6.3653]
[1721098069136,15.53,157.14,157.1,6.3653]
[1721098069450,10.0,157.15,157.1,6.3653]
[1721098069451,15.53,157.13,157.1,6.3653]
[1721098070258,15.53,157.13,157.11,6.3649]
[1721098070937,15.53,157.13,157.1,6.3653]